fUSD/lending_fUSD_20260515
["ID","MTS","AMOUNT","RATE_DAILY","PERIOD"]
[422289560,1778794259000,-300.0,0.00039726,120]
[422289565,1778794259000,-300.0,0.00039726,120]
[422289559,1778794259000,-300.0,0.00039726,120]
[422289534,1778794259000,-222.11904689,0.00039726,15]
[422289540,1778794259000,-500.0,0.00039726,15]
[422289552,1778794259000,-300.0,0.00039726,120]
[422289541,1778794259000,-500.0,0.00039726,15]
[422289502,1778794259000,-188.75106002,0.00039688,7]
[422289537,1778794259000,-500.0,0.00039726,15]
[422289509,1778794259000,-170.46608053,0.00039688,7]
[422289513,1778794259000,-192.42490556,0.00039688,7]
[422289514,1778794259000,-165.3001084,0.00039688,7]
[422289510,1778794259000,-393.91316026,0.00039688,7]
[422289512,1778794259000,-162.28955297,0.00039688,7]
[422289507,1778794259000,-151.28840549,0.00039688,7]
[422289511,1778794259000,-188.75044144,0.00039688,7]
[422289515,1778794259000,-183.51016752,0.00039688,7]
[422289518,1778794259000,-150.64,0.00039726,2]
[422289519,1778794259000,-286.22,0.00039726,2]
[422289517,1778794259000,-372.7,0.00039718,120]
[422289522,1778794259000,-500.0,0.00039726,15]
[422289506,1778794259000,-206.9221136,0.00039688,5]
[422289521,1778794259000,-500.0,0.00039726,15]
[422289526,1778794259000,-500.0,0.00039726,15]
[422289533,1778794259000,-500.0,0.00039726,15]
[422289531,1778794259000,-500.0,0.00039726,15]
[422289539,1778794259000,-500.0,0.00039726,15]
[422289530,1778794259000,-500.0,0.00039726,15]
[422289529,1778794259000,-500.0,0.00039726,15]
[422289532,1778794259000,-500.0,0.00039726,15]
[422289524,1778794259000,-500.0,0.00039726,15]
[422289527,1778794259000,-500.0,0.00039726,15]
[422289520,1778794259000,-5000.0,0.00039726,120]
[422289523,1778794259000,-500.0,0.00039726,15]
[422289516,1778794259000,-151.97716525,0.00039688,7]
[422289525,1778794259000,-500.0,0.00039726,15]
[422289614,1778794260000,-152.0,0.0004,120]
[422289615,1778794260000,-168.96,0.0004,7]
[422289607,1778794260000,-600.0,0.00039988,31]
[422289605,1778794260000,-151.0,0.00039978,60]
[422289603,1778794260000,-372.7,0.00039918,120]
[422289596,1778794260000,-1584.0,0.0003981,11]
[422289594,1778794260000,-1913.10364057,0.00039767,2]
[422289597,1778794260000,-372.7,0.00039818,120]
[422289598,1778794260000,-689.15,0.00039846,120]
[422289616,1778794260000,-214.95940296,0.0004,10]
[422289601,1778794260000,-165.51493618,0.0003989,2]
[422289604,1778794260000,-1584.0,0.00039966,11]
[422289606,1778794260000,-150.0,0.00039979,2]
[422289617,1778794260000,-5463.1285998,0.0004,120]
[422289610,1778794260000,-154.0,0.0004,30]
[422289611,1778794260000,-192.0,0.0004,120]
[422289609,1778794260000,-3840.95,0.0004,120]
[422289613,1778794260000,-2191.37,0.0004,30]
[422289612,1778794260000,-2019.66,0.0004,14]
[422289619,1778794260000,-163.0,0.00040015,11]
[422289620,1778794260000,-372.7,0.00040018,120]
[422289618,1778794260000,-260.0,0.0004,30]
[422289629,1778794260000,-150.0,0.00040062,10]
[422289624,1778794260000,-150.0,0.00040062,10]
[422289621,1778794260000,-164.28960949,0.00040027,30]
[422289602,1778794260000,-979.52995655,0.000399,30]
[422289608,1778794260000,-3503.42,0.0004,120]
[422289595,1778794260000,-157.75351453,0.00039791,2]
[422289623,1778794260000,-163.0,0.00040048,11]
[422289593,1778794260000,-164.28960949,0.00039753,30]
[422289568,1778794260000,-300.0,0.00039726,120]
[422289578,1778794260000,-300.0,0.00039726,120]
[422289570,1778794260000,-300.0,0.00039726,120]
[422289567,1778794260000,-300.0,0.00039726,120]
[422289575,1778794260000,-50000.0,0.00039726,60]
[422289569,1778794260000,-300.0,0.00039726,120]
[422289571,1778794260000,-300.0,0.00039726,120]
[422289574,1778794260000,-300.0,0.00039726,120]
[422289572,1778794260000,-300.0,0.00039726,120]
[422289577,1778794260000,-300.0,0.00039726,120]
[422289573,1778794260000,-300.0,0.00039726,120]
[422289576,1778794260000,-246.49,0.00039726,60]
[422289580,1778794260000,-300.0,0.00039726,120]
[422289581,1778794260000,-300.0,0.00039726,120]
[422289582,1778794260000,-300.0,0.00039726,120]
[422289579,1778794260000,-300.0,0.00039726,120]
[422289589,1778794260000,-300.0,0.00039726,120]
[422289585,1778794260000,-300.0,0.00039726,120]
[422289584,1778794260000,-300.0,0.00039726,120]
[422289586,1778794260000,-300.0,0.00039726,120]
[422289588,1778794260000,-300.0,0.00039726,120]
[422289587,1778794260000,-300.0,0.00039726,120]
[422289583,1778794260000,-300.0,0.00039726,120]
[422289590,1778794260000,-300.0,0.00039726,120]
[422289591,1778794260000,-300.0,0.00039726,120]
[422289599,1778794260000,-172.0,0.00039871,90]
[422289592,1778794260000,-300.0,0.00039726,120]
[422289600,1778794260000,-272.0,0.00039871,90]
[422289625,1778794260000,-150.0,0.00040062,10]
[422289628,1778794260000,-150.0,0.00040062,10]
[422289622,1778794260000,-2311.0,0.00040048,11]
[422289664,1778794260000,-540.11,0.00040318,120]
[422289658,1778794260000,-423.74,0.00040279,2]
[422289662,1778794260000,-698.74,0.0004029,60]
[422289660,1778794260000,-2984.42,0.0004029,60]
[422289661,1778794260000,-358.9,0.0004029,60]
[422289663,1778794260000,-251.64,0.0004029,60]
[422289666,1778794260000,-500.0,0.00040325,60]
[422289670,1778794260000,-1000.0,0.00040366,90]
[422289667,1778794260000,-164.28960949,0.00040329,30]
[422289668,1778794260000,-157.75351453,0.00040339,2]
[422289672,1778794260000,-555.78,0.00040369,120]
[422289671,1778794260000,-1000.0,0.00040366,90]
[422289669,1778794260000,-1672.7364795,0.00040355,30]
[422289674,1778794260000,-372.7,0.00040418,120]
[422289673,1778794260000,-673.12,0.00040369,120]
[422289676,1778794260000,-350.0,0.00040437,10]
[422289675,1778794260000,-150.0,0.00040426,120]
[422289686,1778794260000,-300.0,0.000406,14]
[422289677,1778794260000,-1000.0,0.0004045,120]
[422289684,1778794260000,-661.18775533,0.0004059,2]
[422289679,1778794260000,-464.18,0.00040491,30]
[422289680,1778794260000,-154.71,0.00040491,30]
[422289683,1778794260000,-150.0,0.00040568,2]
[422289678,1778794260000,-150.0,0.00040471,120]
[422289682,1778794260000,-372.7,0.00040518,120]
[422289681,1778794260000,-689.15,0.00040498,120]
[422289685,1778794260000,-192.0,0.000406,120]
[422289659,1778794260000,-2328.6,0.0004029,60]
[422289657,1778794260000,-300.0,0.00040279,2]
[422289627,1778794260000,-150.0,0.00040062,10]
[422289656,1778794260000,-300.0,0.00040279,2]
[422289655,1778794260000,-300.0,0.00040279,2]
[422289626,1778794260000,-150.0,0.00040062,10]
[422289631,1778794260000,-150.0,0.00040062,10]
[422289630,1778794260000,-150.0,0.00040062,10]
[422289633,1778794260000,-150.0,0.00040062,10]
[422289634,1778794260000,-150.0,0.00040062,10]
[422289638,1778794260000,-186.0,0.00040062,60]
[422289637,1778794260000,-155.0,0.00040062,10]
[422289635,1778794260000,-150.0,0.00040062,10]
[422289636,1778794260000,-150.0,0.00040062,10]
[422289639,1778794260000,-157.75351453,0.00040065,2]
[422289640,1778794260000,-200.0,0.000401,16]
[422289641,1778794260000,-372.7,0.00040118,120]
[422289632,1778794260000,-150.0,0.00040062,10]
[422289652,1778794260000,-300.0,0.00040279,2]
[422289651,1778794260000,-300.0,0.00040279,2]
[422289654,1778794260000,-300.0,0.00040279,2]
[422289649,1778794260000,-151.0,0.00040238,2]
[422289645,1778794260000,-1005.40144569,0.00040183,120]
[422289648,1778794260000,-372.7,0.00040218,120]
[422289646,1778794260000,-168.78,0.00040218,6]
[422289647,1778794260000,-385.58,0.00040218,6]
[422289665,1778794260000,-372.7,0.00040318,120]
[422289643,1778794260000,-1734.62772924,0.00040139,30]
[422289653,1778794260000,-300.0,0.00040279,2]
[422289642,1778794260000,-330.28258766,0.0004012,7]
[422289650,1778794260000,-300.0,0.00040279,2]
[422289644,1778794260000,-689.15,0.00040172,120]
[422289727,1778794261000,-260.0,0.00040901,85]
[422289737,1778794261000,-1000.0,0.00040909,120]
[422289734,1778794261000,-1000.0,0.00040909,120]
[422289735,1778794261000,-1000.0,0.00040909,120]
[422289726,1778794261000,-14845.35804582,0.000409,28]
[422289717,1778794261000,-250.0,0.00040877,90]
[422289724,1778794261000,-260.0,0.00040898,85]
[422289716,1778794261000,-250.0,0.00040877,100]
[422289720,1778794261000,-260.0,0.00040886,85]
[422289713,1778794261000,-249.64447243,0.00040873,60]
[422289736,1778794261000,-1000.0,0.00040909,120]
[422289725,1778794261000,-5100.0,0.000409,90]
[422289729,1778794261000,-260.0,0.00040905,85]
[422289748,1778794261000,-1000.0,0.00040909,120]
[422289731,1778794261000,-1000.0,0.00040909,120]
[422289732,1778794261000,-1000.0,0.00040909,120]
[422289730,1778794261000,-260.0,0.00040909,86]
[422289740,1778794261000,-1000.0,0.00040909,120]
[422289739,1778794261000,-1000.0,0.00040909,120]
[422289750,1778794261000,-1000.0,0.00040909,120]
[422289738,1778794261000,-1000.0,0.00040909,120]
[422289749,1778794261000,-1000.0,0.00040909,120]
[422289747,1778794261000,-1000.0,0.00040909,120]
[422289741,1778794261000,-1000.0,0.00040909,120]
[422289746,1778794261000,-1000.0,0.00040909,120]
[422289743,1778794261000,-1000.0,0.00040909,120]
[422289718,1778794261000,-260.0,0.00040878,85]
[422289733,1778794261000,-1000.0,0.00040909,120]
[422289719,1778794261000,-260.0,0.00040882,85]
[422289705,1778794261000,-372.7,0.00040818,120]
[422289723,1778794261000,-260.0,0.00040894,85]
[422289687,1778794261000,-164.28960949,0.00040603,30]
[422289690,1778794261000,-1000.0,0.00040621,90]
[422289689,1778794261000,-372.7,0.00040618,120]
[422289692,1778794261000,-176.67937802,0.00040667,7]
[422289699,1778794261000,-190.53,0.0004075,120]
[422289688,1778794261000,-157.75351453,0.00040613,2]
[422289691,1778794261000,-1000.0,0.00040654,90]
[422289698,1778794261000,-860.82,0.0004075,120]
[422289695,1778794261000,-372.7,0.00040718,120]
[422289697,1778794261000,-225.83777085,0.00040743,120]
[422289694,1778794261000,-300.0,0.000407,14]
[422289693,1778794261000,-1408.3016,0.000407,30]
[422289696,1778794261000,-1000.0,0.00040721,90]
[422289701,1778794261000,-940.0,0.000408,14]
[422289711,1778794261000,-260.0,0.00040865,85]
[422289712,1778794261000,-260.0,0.00040869,85]
[422289702,1778794261000,-178.39541889,0.00040802,2]
[422289742,1778794261000,-1000.0,0.00040909,120]
[422289706,1778794261000,-689.15,0.00040824,120]
[422289700,1778794261000,-2948.03,0.00040785,2]
[422289703,1778794261000,-573745.72867505,0.00040816,2]
[422289704,1778794261000,-165.93,0.00040817,30]
[422289707,1778794261000,-300.0,0.00040845,30]
[422289710,1778794261000,-260.0,0.0004086,84]
[422289709,1778794261000,-1000.0,0.00040858,90]
[422289708,1778794261000,-421.89949204,0.00040845,30]
[422289714,1778794261000,-260.0,0.00040873,85]
[422289721,1778794261000,-157.75351453,0.00040887,2]
[422289722,1778794261000,-260.0,0.0004089,85]
[422289715,1778794261000,-573745.72867505,0.00040877,2]
[422289744,1778794261000,-1000.0,0.00040909,120]
[422289728,1778794261000,-432.77383808,0.00040905,2]
[422289753,1778794261000,-1000.0,0.00040909,120]
[422289786,1778794261000,-553.398143,0.00040933,7]
[422289787,1778794261000,-553.398143,0.00040933,7]
[422289789,1778794261000,-553.398143,0.00040933,7]
[422289785,1778794261000,-325.732631,0.00040933,30]
[422289788,1778794261000,-553.398143,0.00040933,7]
[422289801,1778794261000,-201.84333383,0.00040942,7]
[422289791,1778794261000,-151.0,0.00040933,30]
[422289790,1778794261000,-151.0,0.00040933,30]
[422289802,1778794261000,-379.12267303,0.00040942,7]
[422289792,1778794261000,-260.0,0.00040935,86]
[422289795,1778794261000,-260.0,0.00040941,86]
[422289793,1778794261000,-427490.22613838,0.00040935,2]
[422289794,1778794261000,-260.0,0.00040938,86]
[422289783,1778794261000,-325.732631,0.00040933,30]
[422289798,1778794261000,-228.01890573,0.00040942,7]
[422289800,1778794261000,-240.26928081,0.00040942,7]
[422289796,1778794261000,-193.37225435,0.00040942,7]
[422289799,1778794261000,-203.53352498,0.00040942,7]
[422289803,1778794261000,-348.90446053,0.00040942,7]
[422289805,1778794261000,-155.09854449,0.00040942,2]
[422289804,1778794261000,-324.59332322,0.00040942,7]
[422289806,1778794261000,-370.95907974,0.00040942,7]
[422289810,1778794261000,-320.79633283,0.00040942,7]
[422289808,1778794261000,-369.52324144,0.00040942,7]
[422289745,1778794261000,-1000.0,0.00040909,120]
[422289807,1778794261000,-604.27396769,0.00040942,7]
[422289812,1778794261000,-427.33525842,0.00040942,7]
[422289811,1778794261000,-316.23108741,0.00040942,7]
[422289797,1778794261000,-181.63989698,0.00040942,7]
[422289779,1778794261000,-652.143794,0.00040933,30]
[422289809,1778794261000,-315.6170433,0.00040942,7]
[422289781,1778794261000,-325.732631,0.00040933,30]
[422289784,1778794261000,-325.732631,0.00040933,30]
[422289754,1778794261000,-1000.0,0.00040909,120]
[422289751,1778794261000,-1000.0,0.00040909,120]
[422289762,1778794261000,-489.3729733,0.00040915,2]
[422289755,1778794261000,-1000.0,0.00040909,120]
[422289763,1778794261000,-107079.8127645,0.00040915,2]
[422289758,1778794261000,-1000.0,0.00040909,120]
[422289756,1778794261000,-1000.0,0.00040909,120]
[422289764,1778794261000,-2193.2175057,0.00040915,2]
[422289761,1778794261000,-23892.7357708,0.00040915,2]
[422289760,1778794261000,-260.0,0.00040912,86]
[422289759,1778794261000,-1659.02744487,0.00040909,120]
[422289757,1778794261000,-1000.0,0.00040909,120]
[422289765,1778794261000,-151.0,0.00040915,30]
[422289752,1778794261000,-1000.0,0.00040909,120]
[422289773,1778794261000,-260.0,0.00040923,86]
[422289772,1778794261000,-260.0,0.00040919,86]
[422289778,1778794261000,-652.143794,0.00040933,30]
[422289771,1778794261000,-372.7,0.00040918,120]
[422289767,1778794261000,-151.0,0.00040915,30]
[422289768,1778794261000,-151.0,0.00040915,30]
[422289769,1778794261000,-151.0,0.00040915,30]
[422289780,1778794261000,-652.143794,0.00040933,30]
[422289766,1778794261000,-151.0,0.00040915,30]
[422289775,1778794261000,-260.0,0.00040929,86]
[422289770,1778794261000,-260.0,0.00040916,86]
[422289782,1778794261000,-652.143794,0.00040933,30]
[422289776,1778794261000,-260.0,0.00040932,86]
[422289777,1778794261000,-1000.0,0.00040933,90]
[422289774,1778794261000,-260.0,0.00040926,86]
[422289851,1778794262000,-2682.57183977,0.00040971,7]
[422289852,1778794262000,-2781.82699784,0.00040971,7]
[422289841,1778794262000,-260.0,0.00040969,87]
[422289844,1778794262000,-2080.17592889,0.00040971,7]
[422289846,1778794262000,-2236.95670848,0.00040971,7]
[422289847,1778794262000,-2319.72410669,0.00040971,7]
[422289848,1778794262000,-2405.55389864,0.00040971,7]
[422289845,1778794262000,-2157.14243826,0.00040971,7]
[422289849,1778794262000,-2494.55939289,0.00040971,7]
[422289850,1778794262000,-2586.85809042,0.00040971,7]
[422289843,1778794262000,-2005.9555727,0.00040971,7]
[422289859,1778794262000,-260.0,0.00040978,87]
[422289854,1778794262000,-2991.49051684,0.00040971,7]
[422289855,1778794262000,-260.0,0.00040971,87]
[422289857,1778794262000,-260.0,0.00040976,87]
[422289856,1778794262000,-260.0,0.00040974,87]
[422289842,1778794262000,-1934.38338737,0.00040971,7]
[422289860,1778794262000,-260.0,0.00040981,87]
[422289858,1778794262000,-151.0,0.00040978,60]
[422289861,1778794262000,-427490.22613838,0.00040981,2]
[422289862,1778794262000,-500.0,0.00040981,2]
[422289863,1778794262000,-500.0,0.00040981,2]
[422289864,1778794262000,-500.0,0.00040981,2]
[422289866,1778794262000,-500.0,0.00040981,2]
[422289853,1778794262000,-2884.75459676,0.00040971,7]
[422289839,1778794262000,-260.0,0.00040964,87]
[422289834,1778794262000,-260.0,0.0004095,86]
[422289838,1778794262000,-260.0,0.00040961,87]
[422289865,1778794262000,-500.0,0.00040981,2]
[422289815,1778794262000,-577.91216853,0.00040942,7]
[422289814,1778794262000,-321.86952677,0.00040942,7]
[422289813,1778794262000,-379.93621175,0.00040942,7]
[422289817,1778794262000,-187.11614586,0.00040942,7]
[422289827,1778794262000,-345.36729413,0.00040942,7]
[422289816,1778794262000,-332.47707734,0.00040942,7]
[422289818,1778794262000,-175.9320249,0.00040942,2]
[422289819,1778794262000,-233.38161743,0.00040942,5]
[422289820,1778794262000,-156.58490743,0.00040942,7]
[422289822,1778794262000,-152.71939328,0.00040942,7]
[422289840,1778794262000,-260.0,0.00040966,87]
[422289826,1778794262000,-370.4260988,0.00040942,7]
[422289824,1778794262000,-352.97453683,0.00040942,7]
[422289825,1778794262000,-325.17641698,0.00040942,7]
[422289828,1778794262000,-308.63210156,0.00040942,7]
[422289830,1778794262000,-362.07140494,0.00040942,7]
[422289833,1778794262000,-260.0,0.00040947,86]
[422289831,1778794262000,-337.74609188,0.00040942,7]
[422289832,1778794262000,-260.0,0.00040944,86]
[422289836,1778794262000,-260.0,0.00040956,87]
[422289835,1778794262000,-260.0,0.00040953,87]
[422289837,1778794262000,-260.0,0.00040958,87]
[422289829,1778794262000,-386.43860589,0.00040942,7]
[422289823,1778794262000,-383.01827864,0.00040942,7]
[422289821,1778794262000,-229.27565507,0.00040942,7]
[422289870,1778794262000,-500.0,0.00040981,2]
[422289875,1778794262000,-500.0,0.00040981,2]
[422289897,1778794262000,-322.5914551,0.00040987,7]
[422289899,1778794262000,-331.35635621,0.00040987,7]
[422289903,1778794262000,-160.9,0.0004099,120]
[422289902,1778794262000,-247.61,0.0004099,120]
[422289901,1778794262000,-260.0,0.00040989,87]
[422289904,1778794262000,-260.0,0.00040991,87]
[422289913,1778794262000,-260.0,0.00040998,88]
[422289909,1778794262000,-201.437409,0.00040997,120]
[422289905,1778794262000,-260.0,0.00040994,88]
[422289908,1778794262000,-713.5607913,0.00040997,2]
[422289912,1778794262000,-171.56515,0.00040997,120]
[422289896,1778794262000,-359.50606814,0.00040987,7]
[422289910,1778794262000,-201.437409,0.00040997,120]
[422289907,1778794262000,-400.0,0.00040997,2]
[422289915,1778794262000,-10000.0,0.00040999,30]
[422289916,1778794262000,-151.0,0.00040999,30]
[422289921,1778794262000,-500.0,0.00040999,30]
[422289922,1778794262000,-151.0,0.00040999,30]
[422289918,1778794262000,-200.0,0.00040999,30]
[422289914,1778794262000,-1000.0,0.00040999,120]
[422289917,1778794262000,-6888.0,0.00040999,30]
[422289920,1778794262000,-1030.0,0.00040999,30]
[422289919,1778794262000,-520.0,0.00040999,30]
[422289869,1778794262000,-500.0,0.00040981,2]
[422289911,1778794262000,-201.437409,0.00040997,120]
[422289898,1778794262000,-151.26039559,0.00040987,7]
[422289906,1778794262000,-260.0,0.00040996,88]
[422289892,1778794262000,-403.5270819,0.00040987,7]
[422289893,1778794262000,-186.16271731,0.00040987,7]
[422289867,1778794262000,-500.0,0.00040981,2]
[422289868,1778794262000,-500.0,0.00040981,2]
[422289874,1778794262000,-500.0,0.00040981,2]
[422289871,1778794262000,-500.0,0.00040981,2]
[422289872,1778794262000,-500.0,0.00040981,2]
[422289873,1778794262000,-500.0,0.00040981,2]
[422289887,1778794262000,-151.99753085,0.00040987,7]
[422289876,1778794262000,-500.0,0.00040981,2]
[422289888,1778794262000,-400.98306246,0.00040987,7]
[422289878,1778794262000,-500.0,0.00040981,2]
[422289880,1778794262000,-500.0,0.00040981,2]
[422289881,1778794262000,-500.0,0.00040981,2]
[422289877,1778794262000,-500.0,0.00040981,2]
[422289879,1778794262000,-500.0,0.00040981,2]
[422289894,1778794262000,-388.80797878,0.00040987,7]
[422289895,1778794262000,-223.1538182,0.00040987,2]
[422289889,1778794262000,-305.02894836,0.00040987,7]
[422289900,1778794262000,-2068.67,0.00040989,2]
[422289890,1778794262000,-392.34443861,0.00040987,7]
[422289891,1778794262000,-160.1968175,0.00040987,7]
[422289884,1778794262000,-260.0,0.00040985,87]
[422289885,1778794262000,-260.0,0.00040987,87]
[422289883,1778794262000,-260.0,0.00040983,87]
[422289882,1778794262000,-264.89014969,0.00040981,2]
[422289886,1778794262000,-362.47850047,0.00040987,7]
[422289965,1778794263000,-187.78006525,0.00040999,30]
[422289966,1778794263000,-151.0,0.00040999,30]
[422289962,1778794263000,-500.0,0.00040999,30]
[422289963,1778794263000,-1235.18214925,0.00040999,30]
[422289955,1778794263000,-500.0,0.00040999,30]
[422289959,1778794263000,-151.0,0.00040999,30]
[422289956,1778794263000,-578.20924308,0.00040999,30]
[422289960,1778794263000,-623.58710448,0.00040999,30]
[422289957,1778794263000,-200.0,0.00040999,30]
[422289958,1778794263000,-181.08010149,0.00040999,30]
[422289964,1778794263000,-200.0,0.00040999,30]
[422289954,1778794263000,-601.3376128,0.00040999,30]
[422289967,1778794263000,-646.65982734,0.00040999,30]
[422289977,1778794263000,-1328.27659266,0.00040999,30]
[422289968,1778794263000,-621.78829552,0.00040999,30]
[422289970,1778794263000,-1280.88388878,0.00040999,30]
[422289972,1778794263000,-151.0,0.00040999,30]
[422289971,1778794263000,-194.72792766,0.00040999,30]
[422289974,1778794263000,-200.0,0.00040999,30]
[422289973,1778794263000,-670.58624095,0.00040999,30]
[422289976,1778794263000,-500.0,0.00040999,30]
[422289984,1778794263000,-1377.42282659,0.00040999,30]
[422289975,1778794263000,-644.79446246,0.00040999,30]
[422289979,1778794263000,-151.0,0.00040999,30]
[422289980,1778794263000,-695.39793187,0.00040999,30]
[422289953,1778794263000,-151.0,0.00040999,30]
[422289969,1778794263000,-500.0,0.00040999,30]
[422289950,1778794263000,-200.0,0.00040999,30]
[422289926,1778794263000,-156.587,0.00040999,30]
[422289961,1778794263000,-599.60298507,0.00040999,30]
[422289925,1778794263000,-993.57988643,0.00040999,30]
[422289924,1778794263000,-500.0,0.00040999,30]
[422289923,1778794263000,-200.0,0.00040999,30]
[422289981,1778794263000,-200.0,0.00040999,30]
[422289927,1778794263000,-200.0,0.00040999,30]
[422289928,1778794263000,-7142.856,0.00040999,30]
[422289930,1778794263000,-518.5,0.00040999,30]
[422289931,1778794263000,-539.24,0.00040999,30]
[422289934,1778794263000,-162.380719,0.00040999,30]
[422289929,1778794263000,-1068.11,0.00040999,30]
[422289933,1778794263000,-200.0,0.00040999,30]
[422289932,1778794263000,-151.0,0.00040999,30]
[422289935,1778794263000,-200.0,0.00040999,30]
[422289951,1778794263000,-174.61919141,0.00040999,30]
[422289936,1778794263000,-856.92560853,0.00040999,30]
[422289939,1778794263000,-151.0,0.00040999,30]
[422289941,1778794263000,-500.0,0.00040999,30]
[422289937,1778794263000,-1107.63007,0.00040999,30]
[422289948,1778794263000,-500.0,0.00040999,30]
[422289940,1778794263000,-559.19188,0.00040999,30]
[422289949,1778794263000,-557.5788265,0.00040999,30]
[422289947,1778794263000,-151.0,0.00040999,30]
[422289942,1778794263000,-200.0,0.00040999,30]
[422289944,1778794263000,-331.32789373,0.00040999,30]
[422289943,1778794263000,-168.3888056,0.00040999,30]
[422289945,1778794263000,-1148.61238259,0.00040999,30]
[422289946,1778794263000,-579.88197956,0.00040999,30]
[422289952,1778794263000,-1191.11104075,0.00040999,30]
[422289938,1778794263000,-537.6845,0.00040999,30]
[422289983,1778794263000,-620.0,0.00040999,30]
[422289978,1778794263000,-201.93286099,0.00040999,30]
[422289986,1778794263000,-209.40437684,0.00040999,30]
[422290023,1778794263000,-801.85129955,0.00040999,30]
[422290017,1778794263000,-716.97946142,0.00040999,30]
[422290014,1778794263000,-500.0,0.00040999,30]
[422290021,1778794263000,-200.0,0.00040999,30]
[422290018,1778794263000,-500.0,0.00040999,30]
[422290022,1778794263000,-500.0,0.00040999,30]
[422290016,1778794263000,-151.0,0.00040999,30]
[422290020,1778794263000,-833.92535153,0.00040999,30]
[422290026,1778794263000,-743.50770149,0.00040999,30]
[422290029,1778794263000,-500.0,0.00040999,30]
[422290027,1778794263000,-151.0,0.00040999,30]
[422290028,1778794263000,-864.78058953,0.00040999,30]
[422290038,1778794263000,-151.0,0.00040999,30]
[422290015,1778794263000,-773.2413689,0.00040999,30]
[422290037,1778794263000,-220.0,0.00040999,30]
[422290032,1778794263000,-771.01748645,0.00040999,30]
[422290036,1778794263000,-500.0,0.00040999,30]
[422290035,1778794263000,-896.77747135,0.00040999,30]
[422290031,1778794263000,-500.0,0.00040999,30]
[422290033,1778794263000,-151.0,0.00040999,30]
[422290034,1778794263000,-200.0,0.00040999,30]
[422290040,1778794263000,-200.0,0.00040999,30]
[422290045,1778794263000,-220.0,0.00040999,30]
[422290044,1778794263000,-500.0,0.00040999,30]
[422290042,1778794263000,-929.95823779,0.00040999,30]
[422290039,1778794263000,-799.54513345,0.00040999,30]
[422290041,1778794263000,-151.0,0.00040999,30]
[422289982,1778794263000,-668.65185757,0.00040999,30]
[422290030,1778794263000,-151.0,0.00040999,30]
[422290024,1778794263000,-151.0,0.00040999,30]
[422290043,1778794263000,-500.0,0.00040999,30]
[422290019,1778794263000,-151.0,0.00040999,30]
[422289997,1778794263000,-747.8093786,0.00040999,30]
[422289985,1778794263000,-500.0,0.00040999,30]
[422289990,1778794263000,-693.3919763,0.00040999,30]
[422289998,1778794263000,-200.0,0.00040999,30]
[422289987,1778794263000,-151.0,0.00040999,30]
[422289996,1778794263000,-151.0,0.00040999,30]
[422289991,1778794263000,-151.0,0.00040999,30]
[422290012,1778794263000,-804.17102365,0.00040999,30]
[422289988,1778794263000,-721.12765535,0.00040999,30]
[422289993,1778794263000,-500.0,0.00040999,30]
[422289992,1778794263000,-642.94,0.00040999,30]
[422289994,1778794263000,-1428.38747117,0.00040999,30]
[422289995,1778794263000,-288.66416157,0.00040999,30]
[422290002,1778794263000,-1481.23780761,0.00040999,30]